[Event "Titled Tuesday Blitz June 21 Late 2022"]
[White "Richter, Nils"]
[Black "Dilmukhametov, Artur"]
[WhiteFideId "12990809"]
[BlackFideId "24179922"]
[WhiteElo "2311"]
[BlackElo "2206"]
[Result "1-0"]
[Round "02"]
[TimeControl "180+1"]
[Date "2022.06.22"]
[WhiteClock "0:00:14"]
[BlackClock "0:00:02"]

1. e4 {[%clk 0:03:00]}  e6 {[%clk 0:02:56]} 2. d4 {[%clk 0:02:58]}  d5 {[%clk 0:02:57]} 3. exd5 {[%clk 0:02:53]}  exd5 {[%clk 0:02:57]} 4. Nf3 {[%clk 0:02:53]}  Bd6 {[%clk 0:02:56]} 5. c4 {[%clk 0:02:51]}  dxc4 {[%clk 0:02:57]} 6. Bxc4 {[%clk 0:02:50]}  Nf6 {[%clk 0:02:58]} 7. Qe2+ {[%clk 0:02:49]}  Qe7 {[%clk 0:02:56]} 8. Qxe7+ {[%clk 0:02:49]}  Bxe7 {[%clk 0:02:57]} 9. O-O {[%clk 0:02:48]}  O-O {[%clk 0:02:55]} 10. Re1 {[%clk 0:02:45]}  Bd6 {[%clk 0:02:54]} 11. Nc3 {[%clk 0:02:45]}  a6 {[%clk 0:02:54]} 12. Bg5 {[%clk 0:02:43]}  Nbd7 {[%clk 0:02:53]} 13. Ne5 {[%clk 0:02:40]}  b5 {[%clk 0:02:53]} 14. Bb3 {[%clk 0:02:38]}  Bb7 {[%clk 0:02:53]} 15. Nxd7 {[%clk 0:02:21]}  Nxd7 {[%clk 0:02:54]} 16. Ne4 {[%clk 0:02:19]}  Bb4 {[%clk 0:02:51]} 17. Bd2 {[%clk 0:02:01]}  Bxd2 {[%clk 0:02:44]} 18. Nxd2 {[%clk 0:02:02]}  c5 {[%clk 0:02:42]} 19. Re7 {[%clk 0:01:59]}  Rad8 {[%clk 0:02:42]} 20. Ne4 {[%clk 0:01:28]}  c4 {[%clk 0:02:37]} 21. Bc2 {[%clk 0:01:27]}  Bxe4 {[%clk 0:02:36]} 22. Bxe4 {[%clk 0:01:25]}  Nf6 {[%clk 0:02:37]} 23. Bb7 {[%clk 0:01:23]}  Rxd4 {[%clk 0:02:29]} 24. Bxa6 {[%clk 0:01:22]}  Rfd8 {[%clk 0:02:30]} 25. g3 {[%clk 0:01:19]}  b4 {[%clk 0:02:18]} 26. Rc7 {[%clk 0:01:19]}  Rd2 {[%clk 0:02:11]} 27. Bxc4 {[%clk 0:01:17]}  Rxb2 {[%clk 0:02:11]} 28. Bxf7+ {[%clk 0:01:16]}  Kh8 {[%clk 0:02:11]} 29. Bb3 {[%clk 0:01:15]}  h5 {[%clk 0:02:08]} 30. Re1 {[%clk 0:01:14]}  Ng4 {[%clk 0:02:04]} 31. Rf7 {[%clk 0:01:08]}  Rdd2 {[%clk 0:01:53]} 32. Re8+ {[%clk 0:01:04]}  Kh7 {[%clk 0:01:53]} 33. Ref8 {[%clk 0:00:51]}  Nf6 {[%clk 0:01:15]} 34. Rxf6 {[%clk 0:00:51]}  gxf6 {[%clk 0:01:15]} 35. Rxf6 {[%clk 0:00:52]}  Kg7 {[%clk 0:01:12]} 36. Rf4 {[%clk 0:00:52]}  Kg6 {[%clk 0:01:04]} 37. h4 {[%clk 0:00:51]}  Kg7 {[%clk 0:01:04]} 38. Kg2 {[%clk 0:00:51]}  Re2 {[%clk 0:01:03]} 39. Bc4 {[%clk 0:00:49]}  Rec2 {[%clk 0:01:00]} 40. Bb3 {[%clk 0:00:48]}  Re2 {[%clk 0:01:01]} 41. Rf5 {[%clk 0:00:45]}  Kg6 {[%clk 0:01:00]} 42. Rf3 {[%clk 0:00:44]}  Re1 {[%clk 0:00:57]} 43. Bf7+ {[%clk 0:00:40]}  Kh6 {[%clk 0:00:56]} 44. Rf5 {[%clk 0:00:39]}  Ree2 {[%clk 0:00:52]} 45. Bxh5 {[%clk 0:00:37]}  Re1 {[%clk 0:00:35]} 46. Bf7 {[%clk 0:00:36]}  Kg7 {[%clk 0:00:35]} 47. g4 {[%clk 0:00:35]}  Rd2 {[%clk 0:00:34]} 48. Bb3 {[%clk 0:00:35]}  Rd4 {[%clk 0:00:35]} 49. f3 {[%clk 0:00:29]}  Rd2+ {[%clk 0:00:35]} 50. Kg3 {[%clk 0:00:30]}  Rg1+ {[%clk 0:00:35]} 51. Kf4 {[%clk 0:00:30]}  Re1 {[%clk 0:00:26]} 52. h5 {[%clk 0:00:28]}  Re7 {[%clk 0:00:22]} 53. Kg5 {[%clk 0:00:27]}  Rde2 {[%clk 0:00:21]} 54. h6+ {[%clk 0:00:27]}  Kh7 {[%clk 0:00:21]} 55. f4 {[%clk 0:00:23]}  Rh2 {[%clk 0:00:20]} 56. Rf6 {[%clk 0:00:21]}  Rc7 {[%clk 0:00:14]} 57. Be6 {[%clk 0:00:20]}  Re7 {[%clk 0:00:11]} 58. Bf5+ {[%clk 0:00:20]}  Kg8 {[%clk 0:00:11]} 59. h7+ {[%clk 0:00:18]}  Kg7 {[%clk 0:00:09]} 60. Rg6+ {[%clk 0:00:18]}  Kf7 {[%clk 0:00:07]} 61. Rg8 {[%clk 0:00:17]}  Rxh7 {[%clk 0:00:01]} 62. Bxh7 {[%clk 0:00:16]}  Ra7 {[%clk 0:00:02]} 63. Rb8 {[%clk 0:00:14]} 1-0


[Site "https://www.chess.com"]

[Event "Titled Tuesday Blitz June 21 Late 2022"]
[White "Rios Escobar, Adan"]
[Black "Leiva, Gianmarco"]
[WhiteFideId "3403645"]
[BlackFideId "3804399"]
[WhiteElo "2444"]
[BlackElo "2323"]
[Result "1-0"]
[Round "02"]
[TimeControl "180+1"]
[Date "2022.06.22"]
[WhiteClock "0:00:09"]
[BlackClock "0:00:14"]

1. d4 {[%clk 0:02:53]}  Nf6 {[%clk 0:02:59]} 2. g3 {[%clk 0:02:52]}  d5 {[%clk 0:02:53]} 3. Nf3 {[%clk 0:02:51]}  c6 {[%clk 0:02:49]} 4. c4 {[%clk 0:02:50]}  Bf5 {[%clk 0:02:45]} 5. Nc3 {[%clk 0:02:51]}  e6 {[%clk 0:02:46]} 6. Nh4 {[%clk 0:02:51]}  Be4 {[%clk 0:02:41]} 7. f3 {[%clk 0:02:51]}  Bg6 {[%clk 0:02:41]} 8. Nxg6 {[%clk 0:02:51]}  hxg6 {[%clk 0:02:41]} 9. Qb3 {[%clk 0:02:51]}  Qc7 {[%clk 0:02:36]} 10. Bf4 {[%clk 0:02:47]}  Qb6 {[%clk 0:02:22]} 11. c5 {[%clk 0:02:32]}  Qxb3 {[%clk 0:02:16]} 12. axb3 {[%clk 0:02:33]}  Na6 {[%clk 0:02:16]} 13. Ra4 {[%clk 0:02:30]}  Nh5 {[%clk 0:02:13]} 14. e4 {[%clk 0:01:57]}  Nxf4 {[%clk 0:01:41]} 15. Bxa6 {[%clk 0:01:50]}  bxa6 {[%clk 0:01:34]} 16. gxf4 {[%clk 0:01:50]}  Rh4 {[%clk 0:01:33]} 17. Ne2 {[%clk 0:01:40]}  Rb8 {[%clk 0:01:13]} 18. Ra3 {[%clk 0:01:18]}  Be7 {[%clk 0:00:43]} 19. Kf2 {[%clk 0:01:17]}  a5 {[%clk 0:00:41]} 20. Kg3 {[%clk 0:01:12]}  Bd8 {[%clk 0:00:39]} 21. Rha1 {[%clk 0:00:43]}  dxe4 {[%clk 0:00:39]} 22. fxe4 {[%clk 0:00:43]}  g5 {[%clk 0:00:40]} 23. Rf1 {[%clk 0:00:15]}  Rb4 {[%clk 0:00:40]} 24. Rf3 {[%clk 0:00:13]}  Bc7 {[%clk 0:00:36]} 25. e5 {[%clk 0:00:10]}  Rh5 {[%clk 0:00:16]} 26. Kg4 {[%clk 0:00:06]}  Rh4+ {[%clk 0:00:16]} 27. Kg3 {[%clk 0:00:06]}  Rh5 {[%clk 0:00:14]} 28. Kg4 {[%clk 0:00:07]}  g6 {[%clk 0:00:10]} 29. fxg5 {[%clk 0:00:07]}  Bxe5 {[%clk 0:00:08]} 30. Rxa5 {[%clk 0:00:06]}  Bxd4 {[%clk 0:00:09]} 31. Rf4 {[%clk 0:00:04]}  Rxb3 {[%clk 0:00:04]} 32. Nxd4 {[%clk 0:00:04]}  Rxb2 {[%clk 0:00:03]} 33. Nf3 {[%clk 0:00:04]}  Rb7 {[%clk 0:00:03]} 34. Raa4 {[%clk 0:00:03]}  Rd7 {[%clk 0:00:03]} 35. Rad4 {[%clk 0:00:04]}  Rd5 {[%clk 0:00:02]} 36. Rxd5 {[%clk 0:00:03]}  cxd5 {[%clk 0:00:02]} 37. Ra4 {[%clk 0:00:04]}  Kd7 {[%clk 0:00:02]} 38. Rxa7+ {[%clk 0:00:04]}  Kc6 {[%clk 0:00:03]} 39. Rxf7 {[%clk 0:00:05]}  Kxc5 {[%clk 0:00:03]} 40. Rf6 {[%clk 0:00:06]}  Kd6 {[%clk 0:00:03]} 41. Rxg6 {[%clk 0:00:06]}  Rh8 {[%clk 0:00:03]} 42. h4 {[%clk 0:00:06]}  Rb8 {[%clk 0:00:02]} 43. h5 {[%clk 0:00:06]}  d4 {[%clk 0:00:03]} 44. h6 {[%clk 0:00:05]}  d3 {[%clk 0:00:03]} 45. h7 {[%clk 0:00:06]}  Kd5 {[%clk 0:00:03]} 46. Rg8 {[%clk 0:00:06]}  Rb4+ {[%clk 0:00:03]} 47. Kg3 {[%clk 0:00:06]}  d2 {[%clk 0:00:04]} 48. Nxd2 {[%clk 0:00:05]}  Rb3+ {[%clk 0:00:05]} 49. Nf3 {[%clk 0:00:06]}  Ke4 {[%clk 0:00:05]} 50. h8=Q {[%clk 0:00:06]}  Rxf3+ {[%clk 0:00:06]} 51. Kg4 {[%clk 0:00:06]}  Rf4+ {[%clk 0:00:06]} 52. Kg3 {[%clk 0:00:06]}  Rf5 {[%clk 0:00:07]} 53. Kg2 {[%clk 0:00:06]}  Rf4 {[%clk 0:00:08]} 54. Qc3 {[%clk 0:00:06]}  Rg4+ {[%clk 0:00:08]} 55. Kf2 {[%clk 0:00:05]}  Kf5 {[%clk 0:00:09]} 56. Qd3+ {[%clk 0:00:05]}  Ke5 {[%clk 0:00:09]} 57. g6 {[%clk 0:00:06]}  Rf4+ {[%clk 0:00:09]} 58. Ke2 {[%clk 0:00:06]}  Rg4 {[%clk 0:00:10]} 59. g7 {[%clk 0:00:06]}  Rg2+ {[%clk 0:00:10]} 60. Kf3 {[%clk 0:00:06]}  Rg3+ {[%clk 0:00:10]} 61. Kxg3 {[%clk 0:00:05]}  Kf6 {[%clk 0:00:11]} 62. Qf3+ {[%clk 0:00:06]}  Kg6 {[%clk 0:00:11]} 63. Qe4+ {[%clk 0:00:06]}  Kf6 {[%clk 0:00:11]} 64. Qf4+ {[%clk 0:00:06]}  Ke7 {[%clk 0:00:11]} 65. Rf8 {[%clk 0:00:06]}  e5 {[%clk 0:00:12]} 66. Qf6+ {[%clk 0:00:07]}  Kd7 {[%clk 0:00:12]} 67. Rd8+ {[%clk 0:00:08]}  Kc7 {[%clk 0:00:12]} 68. Qd6+ {[%clk 0:00:09]}  Kb7 {[%clk 0:00:13]} 69. Rb8+ {[%clk 0:00:09]}  Ka7 {[%clk 0:00:14]} 70. Qb6# {[%clk 0:00:09]} 1-0


[Site "https://www.chess.com"]

[Event "Titled Tuesday Blitz June 21 Late 2022"]
[White "Roque Sola, Jose Luis"]
[Black "Gimenez Aguirre, Alejo Ismael"]
[WhiteFideId "5120390"]
[BlackFideId "32041667"]
[WhiteElo "1983"]
[BlackElo "2031"]
[Result "0-1"]
[Round "02"]
[TimeControl "180+1"]
[Date "2022.06.22"]
[WhiteClock "0:00:16"]
[BlackClock "0:02:21"]

1. c4 {[%clk 0:03:00]}  e5 {[%clk 0:02:59]} 2. Nc3 {[%clk 0:03:00]}  Nc6 {[%clk 0:03:00]} 3. Nf3 {[%clk 0:03:00]}  a6 {[%clk 0:03:00]} 4. g3 {[%clk 0:02:59]}  Bc5 {[%clk 0:03:00]} 5. Nxe5 {[%clk 0:02:57]}  Bxf2+ {[%clk 0:02:58]} 6. Kxf2 {[%clk 0:02:58]}  Nxe5 {[%clk 0:02:58]} 7. e4 {[%clk 0:02:58]}  c5 {[%clk 0:02:55]} 8. Be2 {[%clk 0:02:55]}  h5 {[%clk 0:02:54]} 9. d3 {[%clk 0:02:37]}  Nf6 {[%clk 0:02:52]} 10. Bf4 {[%clk 0:02:31]}  Neg4+ {[%clk 0:02:49]} 11. Kg2 {[%clk 0:02:31]}  d6 {[%clk 0:02:47]} 12. h3 {[%clk 0:02:15]}  Ne5 {[%clk 0:02:45]} 13. a3 {[%clk 0:01:45]}  Be6 {[%clk 0:02:39]} 14. Nd5 {[%clk 0:01:37]}  Bxd5 {[%clk 0:02:38]} 15. exd5 {[%clk 0:01:35]}  Ng6 {[%clk 0:02:38]} 16. Bg5 {[%clk 0:01:33]}  Qd7 {[%clk 0:02:36]} 17. Bxf6 {[%clk 0:01:23]}  gxf6 {[%clk 0:02:35]} 18. Bxh5 {[%clk 0:01:22]}  O-O-O {[%clk 0:02:35]} 19. b4 {[%clk 0:00:50]}  Rdg8 {[%clk 0:02:31]} 20. bxc5 {[%clk 0:00:47]}  Nf4+ {[%clk 0:02:30]} 21. Kf2 {[%clk 0:00:42]}  Nxh5 {[%clk 0:02:29]} 22. cxd6 {[%clk 0:00:37]}  Nxg3 {[%clk 0:02:27]} 23. Rg1 {[%clk 0:00:26]}  Rxh3 {[%clk 0:02:27]} 24. c5 {[%clk 0:00:21]}  Qf5+ {[%clk 0:02:26]} 25. Qf3 {[%clk 0:00:19]}  Rh2+ {[%clk 0:02:24]} 26. Ke3 {[%clk 0:00:16]}  Re8+ {[%clk 0:02:21]} 0-1


[Site "https://www.chess.com"]

[Event "Titled Tuesday Blitz June 21 Late 2022"]
[White "Sadilek, Peter"]
[Black "Gubajdullin, Alexei"]
[WhiteFideId "1616439"]
[BlackFideId "4141202"]
[WhiteElo "2145"]
[BlackElo "2280"]
[Result "0-1"]
[Round "02"]
[TimeControl "180+1"]
[Date "2022.06.22"]
[WhiteClock "0:00:54"]
[BlackClock "0:01:08"]

1. e4 {[%clk 0:03:00]}  g6 {[%clk 0:02:58]} 2. d4 {[%clk 0:03:01]}  Bg7 {[%clk 0:02:58]} 3. Nc3 {[%clk 0:03:01]}  d6 {[%clk 0:02:57]} 4. Be3 {[%clk 0:03:02]}  a6 {[%clk 0:02:55]} 5. h4 {[%clk 0:03:03]}  h6 {[%clk 0:02:55]} 6. Qd2 {[%clk 0:02:51]}  b5 {[%clk 0:02:54]} 7. a4 {[%clk 0:02:52]}  b4 {[%clk 0:02:54]} 8. Na2 {[%clk 0:02:52]}  a5 {[%clk 0:02:53]} 9. Nc1 {[%clk 0:02:53]}  Bb7 {[%clk 0:02:53]} 10. f3 {[%clk 0:02:53]}  Nd7 {[%clk 0:02:48]} 11. Nb3 {[%clk 0:02:53]}  Ngf6 {[%clk 0:02:39]} 12. Nh3 {[%clk 0:02:49]}  e6 {[%clk 0:02:32]} 13. Nf4 {[%clk 0:02:48]}  Qe7 {[%clk 0:02:30]} 14. Bb5 {[%clk 0:02:47]}  O-O {[%clk 0:02:28]} 15. g4 {[%clk 0:02:41]}  c6 {[%clk 0:02:17]} 16. Be2 {[%clk 0:02:40]}  e5 {[%clk 0:02:17]} 17. Nh3 {[%clk 0:02:31]}  h5 {[%clk 0:02:16]} 18. g5 {[%clk 0:02:26]}  Ne8 {[%clk 0:02:15]} 19. Nf2 {[%clk 0:02:16]}  Nc7 {[%clk 0:02:09]} 20. O-O-O {[%clk 0:02:10]}  Rfd8 {[%clk 0:02:07]} 21. f4 {[%clk 0:02:00]}  exf4 {[%clk 0:02:00]} 22. Bxf4 {[%clk 0:02:01]}  Ne6 {[%clk 0:01:59]} 23. Be3 {[%clk 0:01:57]}  c5 {[%clk 0:01:56]} 24. d5 {[%clk 0:01:54]}  Nef8 {[%clk 0:01:54]} 25. Bb5 {[%clk 0:01:29]}  Ne5 {[%clk 0:01:39]} 26. Rhf1 {[%clk 0:01:29]}  Ba6 {[%clk 0:01:38]} 27. Qe2 {[%clk 0:01:29]}  Bxb5 {[%clk 0:01:36]} 28. Qxb5 {[%clk 0:01:30]}  Rdb8 {[%clk 0:01:34]} 29. Qe2 {[%clk 0:01:28]}  c4 {[%clk 0:01:29]} 30. Nd4 {[%clk 0:01:28]}  b3 {[%clk 0:01:29]} 31. cxb3 {[%clk 0:01:10]}  Qd7 {[%clk 0:01:29]} 32. Nc6 {[%clk 0:00:52]}  Nxc6 {[%clk 0:01:24]} 33. dxc6 {[%clk 0:00:53]}  Qxc6 {[%clk 0:01:24]} 34. Qxc4 {[%clk 0:00:53]}  Bxb2+ {[%clk 0:01:12]} 35. Kb1 {[%clk 0:00:52]}  Qxc4 {[%clk 0:01:10]} 36. bxc4 {[%clk 0:00:53]}  Bd4+ {[%clk 0:01:10]} 37. Kc2 {[%clk 0:00:53]}  Bxe3 {[%clk 0:01:09]} 38. Nd3 {[%clk 0:00:54]}  Ne6 {[%clk 0:01:08]} 0-1


[Site "https://www.chess.com"]

[Event "Titled Tuesday Blitz June 21 Late 2022"]
[White "Barria Santos, Jose Guilherme"]
[Black "Mangialardo, Tiago Carvalho"]
[WhiteFideId "1939300"]
[BlackFideId "2130718"]
[WhiteElo "2261"]
[BlackElo "2096"]
[Result "1-0"]
[Round "02"]
[TimeControl "180+1"]
[Date "2022.06.22"]
[WhiteClock "0:00:08"]
[BlackClock "0:00:01"]

1. d4 {[%clk 0:02:58]}  d5 {[%clk 0:03:00]} 2. c4 {[%clk 0:02:58]}  e6 {[%clk 0:03:00]} 3. Nc3 {[%clk 0:02:57]}  Nf6 {[%clk 0:03:00]} 4. cxd5 {[%clk 0:02:57]}  exd5 {[%clk 0:03:00]} 5. Bg5 {[%clk 0:02:57]}  Be7 {[%clk 0:03:01]} 6. e3 {[%clk 0:02:57]}  O-O {[%clk 0:03:01]} 7. Bd3 {[%clk 0:02:58]}  c6 {[%clk 0:03:00]} 8. Qc2 {[%clk 0:02:58]}  h6 {[%clk 0:02:59]} 9. Bh4 {[%clk 0:02:57]}  Be6 {[%clk 0:03:00]} 10. Nge2 {[%clk 0:02:56]}  Re8 {[%clk 0:03:00]} 11. Nf4 {[%clk 0:02:54]}  Qc8 {[%clk 0:02:56]} 12. Nxe6 {[%clk 0:02:54]}  Qxe6 {[%clk 0:02:55]} 13. Bf5 {[%clk 0:02:50]}  Qd6 {[%clk 0:02:53]} 14. Bg3 {[%clk 0:02:50]}  Qd8 {[%clk 0:02:52]} 15. O-O {[%clk 0:02:48]}  Bd6 {[%clk 0:02:52]} 16. Bh4 {[%clk 0:02:46]}  Be7 {[%clk 0:02:53]} 17. Rfe1 {[%clk 0:02:43]}  Nbd7 {[%clk 0:02:52]} 18. Bg3 {[%clk 0:02:42]}  Nf8 {[%clk 0:02:52]} 19. f3 {[%clk 0:02:39]}  Bd6 {[%clk 0:02:52]} 20. Bf2 {[%clk 0:02:39]}  Qc7 {[%clk 0:02:40]} 21. g3 {[%clk 0:02:31]}  Ne6 {[%clk 0:02:40]} 22. Kg2 {[%clk 0:02:18]}  c5 {[%clk 0:01:50]} 23. Nb5 {[%clk 0:02:15]}  Qb6 {[%clk 0:01:45]} 24. Nxd6 {[%clk 0:02:13]}  Qxd6 {[%clk 0:01:46]} 25. dxc5 {[%clk 0:02:06]}  Qxc5 {[%clk 0:01:45]} 26. Rac1 {[%clk 0:02:00]}  Qa5 {[%clk 0:01:30]} 27. a3 {[%clk 0:01:49]}  Qb5 {[%clk 0:01:27]} 28. Bd3 {[%clk 0:01:47]}  Qd7 {[%clk 0:01:25]} 29. Qb3 {[%clk 0:01:34]}  Rec8 {[%clk 0:01:21]} 30. Bf5 {[%clk 0:01:11]}  b6 {[%clk 0:01:09]} 31. Qd3 {[%clk 0:01:08]}  g6 {[%clk 0:01:05]} 32. Bh3 {[%clk 0:01:04]}  Qe7 {[%clk 0:00:54]} 33. Red1 {[%clk 0:01:00]}  Rxc1 {[%clk 0:00:49]} 34. Rxc1 {[%clk 0:01:00]}  Ng5 {[%clk 0:00:44]} 35. Rc8+ {[%clk 0:00:53]}  Rxc8 {[%clk 0:00:43]} 36. Bxc8 {[%clk 0:00:54]}  Qc7 {[%clk 0:00:30]} 37. Ba6 {[%clk 0:00:52]}  Qd7 {[%clk 0:00:30]} 38. Qd1 {[%clk 0:00:38]}  Qh3+ {[%clk 0:00:22]} 39. Kg1 {[%clk 0:00:38]}  h5 {[%clk 0:00:17]} 40. Bf1 {[%clk 0:00:34]}  Qf5 {[%clk 0:00:15]} 41. Bg2 {[%clk 0:00:35]}  Ne6 {[%clk 0:00:08]} 42. Be1 {[%clk 0:00:32]}  Nd7 {[%clk 0:00:06]} 43. Bc3 {[%clk 0:00:31]}  Ndc5 {[%clk 0:00:05]} 44. Bf1 {[%clk 0:00:25]}  Ng5 {[%clk 0:00:04]} 45. Bg2 {[%clk 0:00:21]}  Nge6 {[%clk 0:00:03]} 46. h3 {[%clk 0:00:19]}  Ng5 {[%clk 0:00:03]} 47. g4 {[%clk 0:00:18]}  Qd3 {[%clk 0:00:03]} 48. Qxd3 {[%clk 0:00:18]}  Nxd3 {[%clk 0:00:04]} 49. h4 {[%clk 0:00:16]}  Ne6 {[%clk 0:00:04]} 50. gxh5 {[%clk 0:00:16]}  gxh5 {[%clk 0:00:04]} 51. Kf1 {[%clk 0:00:15]}  Ndc5 {[%clk 0:00:02]} 52. Ke2 {[%clk 0:00:14]}  Na4 {[%clk 0:00:03]} 53. Be5 {[%clk 0:00:11]}  Kf8 {[%clk 0:00:03]} 54. f4 {[%clk 0:00:11]}  Ke7 {[%clk 0:00:03]} 55. Bxd5 {[%clk 0:00:11]}  f6 {[%clk 0:00:03]} 56. Bb8 {[%clk 0:00:11]}  Nxb2 {[%clk 0:00:02]} 57. Bxa7 {[%clk 0:00:10]}  b5 {[%clk 0:00:02]} 58. Bc6 {[%clk 0:00:07]}  Nc4 {[%clk 0:00:02]} 59. Bxb5 {[%clk 0:00:08]}  Nxa3 {[%clk 0:00:02]} 60. Bd3 {[%clk 0:00:08]}  Nc5 {[%clk 0:00:01]} 61. Bxc5+ {[%clk 0:00:08]} 1-0


[Site "https://www.chess.com"]

[Event "Titled Tuesday Blitz June 21 Late 2022"]
[White "Senthilkumar, Pranav"]
[Black "Burke, Paul"]
[WhiteFideId "2083477"]
[BlackFideId "2605767"]
[WhiteElo "2443"]
[BlackElo "2011"]
[Result "1-0"]
[Round "02"]
[TimeControl "180+1"]
[Date "2022.06.22"]
[WhiteClock "0:02:34"]
[BlackClock "0:01:51"]

1. Nf3 {[%clk 0:03:00]}  a6 {[%clk 0:02:59]} 2. g3 {[%clk 0:03:00]}  d6 {[%clk 0:02:59]} 3. Bg2 {[%clk 0:03:01]}  g6 {[%clk 0:02:59]} 4. O-O {[%clk 0:03:02]}  Nd7 {[%clk 0:02:59]} 5. d4 {[%clk 0:03:03]}  Bg7 {[%clk 0:02:59]} 6. c4 {[%clk 0:03:04]}  h6 {[%clk 0:02:57]} 7. Nc3 {[%clk 0:03:04]}  e6 {[%clk 0:02:57]} 8. e4 {[%clk 0:03:04]}  Ne7 {[%clk 0:02:57]} 9. e5 {[%clk 0:03:01]}  O-O {[%clk 0:02:55]} 10. exd6 {[%clk 0:03:01]}  cxd6 {[%clk 0:02:55]} 11. d5 {[%clk 0:03:01]}  e5 {[%clk 0:02:54]} 12. Ne4 {[%clk 0:02:58]}  Nf6 {[%clk 0:02:45]} 13. Nxf6+ {[%clk 0:02:57]}  Bxf6 {[%clk 0:02:44]} 14. Bxh6 {[%clk 0:02:57]}  Bg7 {[%clk 0:02:44]} 15. Bxg7 {[%clk 0:02:58]}  Kxg7 {[%clk 0:02:45]} 16. c5 {[%clk 0:02:56]}  e4 {[%clk 0:02:38]} 17. cxd6 {[%clk 0:02:50]}  exf3 {[%clk 0:02:35]} 18. dxe7 {[%clk 0:02:49]}  fxg2 {[%clk 0:02:17]} 19. exd8=Q {[%clk 0:02:45]}  gxf1=Q+ {[%clk 0:02:15]} 20. Qxf1 {[%clk 0:02:46]}  Rxd8 {[%clk 0:02:15]} 21. Rd1 {[%clk 0:02:45]}  Bf5 {[%clk 0:02:12]} 22. Qc4 {[%clk 0:02:42]}  Rac8 {[%clk 0:02:10]} 23. Qd4+ {[%clk 0:02:43]}  Kh7 {[%clk 0:02:05]} 24. d6 {[%clk 0:02:43]}  Rd7 {[%clk 0:02:02]} 25. Kg2 {[%clk 0:02:39]}  Rcd8 {[%clk 0:01:57]} 26. Qf6 {[%clk 0:02:36]}  Be6 {[%clk 0:01:55]} 27. Rd4 {[%clk 0:02:35]}  Rxd6 {[%clk 0:01:51]} 28. Rh4+ {[%clk 0:02:34]} 1-0


[Site "https://www.chess.com"]

[Event "Titled Tuesday Blitz June 21 Late 2022"]
[White "Shimanov, Aleksandr"]
[Black "Boder, Jan"]
[WhiteFideId "4198603"]
[BlackFideId "16243226"]
[WhiteElo "2605"]
[BlackElo "2064"]
[Result "1-0"]
[Round "02"]
[TimeControl "180+1"]
[Date "2022.06.22"]
[WhiteClock "0:02:19"]
[BlackClock "0:00:21"]

1. e4 {[%clk 0:03:00]}  e5 {[%clk 0:02:59]} 2. Nf3 {[%clk 0:03:00]}  Nc6 {[%clk 0:02:59]} 3. Bb5 {[%clk 0:02:59]}  a6 {[%clk 0:02:58]} 4. Ba4 {[%clk 0:02:59]}  Nf6 {[%clk 0:02:58]} 5. Nc3 {[%clk 0:02:55]}  b5 {[%clk 0:02:51]} 6. Bb3 {[%clk 0:02:54]}  d6 {[%clk 0:02:51]} 7. Ng5 {[%clk 0:02:52]}  Be6 {[%clk 0:02:42]} 8. Nxe6 {[%clk 0:02:43]}  fxe6 {[%clk 0:02:43]} 9. Bxe6 {[%clk 0:02:44]}  Nd4 {[%clk 0:02:37]} 10. Bh3 {[%clk 0:02:44]}  Be7 {[%clk 0:02:37]} 11. O-O {[%clk 0:02:44]}  O-O {[%clk 0:02:36]} 12. d3 {[%clk 0:02:44]}  c6 {[%clk 0:02:34]} 13. Ne2 {[%clk 0:02:44]}  d5 {[%clk 0:02:26]} 14. Nxd4 {[%clk 0:02:42]}  exd4 {[%clk 0:02:26]} 15. e5 {[%clk 0:02:43]}  Nd7 {[%clk 0:02:25]} 16. f4 {[%clk 0:02:43]}  c5 {[%clk 0:02:20]} 17. Qe2 {[%clk 0:02:40]}  c4 {[%clk 0:02:17]} 18. Be6+ {[%clk 0:02:36]}  Kh8 {[%clk 0:02:17]} 19. Bxd5 {[%clk 0:02:37]}  Nc5 {[%clk 0:01:36]} 20. Bxa8 {[%clk 0:02:35]}  Qxa8 {[%clk 0:01:35]} 21. f5 {[%clk 0:02:35]}  cxd3 {[%clk 0:01:32]} 22. cxd3 {[%clk 0:02:36]}  Qd5 {[%clk 0:01:30]} 23. f6 {[%clk 0:02:35]}  gxf6 {[%clk 0:01:28]} 24. Bh6 {[%clk 0:02:36]}  Rg8 {[%clk 0:01:22]} 25. exf6 {[%clk 0:02:35]}  Nxd3 {[%clk 0:00:49]} 26. fxe7 {[%clk 0:02:31]}  Ne5 {[%clk 0:00:41]} 27. Rae1 {[%clk 0:02:26]}  Ng4 {[%clk 0:00:26]} 28. e8=Q {[%clk 0:02:22]}  Ne3 {[%clk 0:00:21]} 29. Bxe3 {[%clk 0:02:19]}  Qd6 {[%clk 0:00:21]} 1-0


[Site "https://www.chess.com"]

[Event "Titled Tuesday Blitz June 21 Late 2022"]
[White "Sibilio, Mario"]
[Black "Korchmar, Vasiliy"]
[WhiteFideId "800422"]
[BlackFideId "24131750"]
[WhiteElo "2296"]
[BlackElo "2370"]
[Result "0-1"]
[Round "02"]
[TimeControl "180+1"]
[Date "2022.06.22"]
[WhiteClock "0:00:04"]
[BlackClock "0:00:52"]

1. d4 {[%clk 0:03:00]}  d5 {[%clk 0:02:59]} 2. Nf3 {[%clk 0:02:58]}  Nf6 {[%clk 0:02:59]} 3. c4 {[%clk 0:02:58]}  c6 {[%clk 0:02:59]} 4. Nc3 {[%clk 0:02:58]}  e6 {[%clk 0:02:58]} 5. Bg5 {[%clk 0:02:57]}  Be7 {[%clk 0:02:58]} 6. e3 {[%clk 0:02:56]}  Nbd7 {[%clk 0:02:58]} 7. Rc1 {[%clk 0:02:55]}  O-O {[%clk 0:02:58]} 8. Qc2 {[%clk 0:02:54]}  Ne4 {[%clk 0:02:48]} 9. Bxe7 {[%clk 0:02:44]}  Qxe7 {[%clk 0:02:49]} 10. a3 {[%clk 0:02:42]}  Nxc3 {[%clk 0:02:19]} 11. Qxc3 {[%clk 0:02:41]}  a5 {[%clk 0:02:20]} 12. Bd3 {[%clk 0:02:25]}  dxc4 {[%clk 0:02:10]} 13. Bxc4 {[%clk 0:02:24]}  b5 {[%clk 0:02:09]} 14. Ba2 {[%clk 0:02:22]}  b4 {[%clk 0:02:03]} 15. Qd3 {[%clk 0:01:50]}  e5 {[%clk 0:01:48]} 16. Bb1 {[%clk 0:01:39]}  g6 {[%clk 0:01:44]} 17. O-O {[%clk 0:01:29]}  Ba6 {[%clk 0:01:43]} 18. Qe4 {[%clk 0:01:26]}  Bxf1 {[%clk 0:01:42]} 19. Kxf1 {[%clk 0:01:26]}  bxa3 {[%clk 0:01:41]} 20. bxa3 {[%clk 0:01:23]}  Qxa3 {[%clk 0:01:41]} 21. Rxc6 {[%clk 0:01:17]}  exd4 {[%clk 0:01:33]} 22. Nxd4 {[%clk 0:01:16]}  Qb4 {[%clk 0:01:20]} 23. Bd3 {[%clk 0:01:01]}  a4 {[%clk 0:01:18]} 24. Qd5 {[%clk 0:00:47]}  Nb6 {[%clk 0:01:02]} 25. Qa2 {[%clk 0:00:46]}  a3 {[%clk 0:00:51]} 26. Bxg6 {[%clk 0:00:17]}  hxg6 {[%clk 0:00:51]} 27. Rxg6+ {[%clk 0:00:16]}  Kh7 {[%clk 0:00:52]} 28. Rf6 {[%clk 0:00:04]}  Qc4+ {[%clk 0:00:52]} 0-1


[Site "https://www.chess.com"]